Cogmind - Beta 11.1 @@@ ROGUE MODE // 2022.05.30 @ 19:14:01 Player: SC1ENCE Result: Destroyed by G-47 Trooper with Particle Gun Performance ------------- Evolutions (3) 1500 Regions Visited (4) 800 Robots Destroyed (113) 565 Value Destroyed (3016) 3016 Prototype IDs (9) 180 Alien Tech Used (0) 0 Bonus (245) 245 TOTAL SCORE: 6306 Bonus ------- High Alert Combat Kills 245 Cogmind --------- Core Integrity 0/700 Matter 162/300 Energy 100/100 System Corruption 5% Temperature Cool (9) Movement Core (700) Ox13 Location -7/Factory Parts ------- > --- POWER (2) -------- (None) > --- PROPULSION (4) --- (None) > --- UTILITY (4) ------ High-capacity Storage Unit Advanced Visual Processing Unit > --- WEAPON (3) ------- (None) > --- INVENTORY (20) --- Coolant Injector High-capacity Storage Unit Actuator Array Peak State ------------ > --- POWER ------------ Deuterium Engine Improved Deuterium Engine > --- PROPULSION ------- Improved Carbon-fiber Leg Improved Carbon-fiber Leg Improved Carbon-fiber Leg Improved Titanium Leg > --- UTILITY ---------- Coolant Injector High-capacity Storage Unit Advanced Visual Processing Unit ECM Suite > --- WEAPON ----------- Minigun Enhanced Autogun Precision Assault Rifle > --- INVENTORY -------- Aluminum Leg Aluminum Leg Carbon-fiber Leg Carbon-fiber Leg Titanium Leg Improved Carbon-fiber Leg Cryofiber Web Coolant Injector High-capacity Storage Unit Actuator Array Improved Shield Generator Spread Laser Spread Laser Minigun Gauss Rifle Assault Cannon Greatsword Greatsword [Rating: 50] Favorites ----------- Power Ion Engine Engine Ion Engine Power Core Light Nuclear Core Propulsion Aluminum Leg Treads Light Treads Leg Aluminum Leg Utility High-capacity Storage Unit Device Cooling System Storage High-capacity Storage Unit Processor Signal Interpreter Protection Core Shielding Weapon Spread Laser Energy Gun Spread Laser Energy Cannon Particle Cannon Ballistic Gun Minigun Ballistic Cannon Light Cannon Launcher Grenade Launcher Slashing Weapon Greatsword Build | -11 -10 -9 -8 -7 ------- Run | Scr Mat Mat Mat Fac Slots Evolved 6 | . . 2 2 2 Power 1 | . . . . 1 Propulsion 2 | . . . 1 1 Utility 2 | . . 1 1 . Weapon 1 | . . 1 . . Parts Attached 121 | 6 29 12 34 40 Power 18 | 1 5 1 4 7 Engine 13 | 1 3 1 2 6 Core 5 | . 2 . 2 1 Reactor . | . . . . . Propulsion 44 | 2 10 3 16 13 Treads 8 | . . 2 6 . Leg 36 | 2 10 1 10 13 Wheel . | . . . . . Hover . | . . . . . Flight . | . . . . . Utility 25 | 1 8 3 7 6 Device 16 | 1 3 2 5 5 Storage 2 | . 1 1 . . Processor 5 | . 2 . 2 1 Hackware . | . . . . . Protection 2 | . 2 . . . Artifact . | . . . . . Weapon 34 | 2 6 5 7 14 Energy Gun 11 | 1 2 3 3 2 Energy Cannon 1 | . . . 1 . Ballistic Gun 13 | 1 1 . 3 8 Ballistic Cannon 2 | . 1 . . 1 Launcher 5 | . 2 2 . 1 Special Weapon . | . . . . . Impact Weapon . | . . . . . Slashing Weapon 2 | . . . . 2 Piercing Weapon . | . . . . . Special Melee Weapon . | . . . . . Unidentified Prototypes 5 | . . 1 2 2 Parts Lost 53 | . 3 5 18 27 Power 11 | . 1 . 4 6 Propulsion 19 | . 1 2 6 10 Utility 7 | . . 2 3 2 Weapon 16 | . 1 1 5 9 Highest Loss Streak 25 | . 2 2 8 25 To Critical Strikes . | . . . . . Average Slot Usage (%) 96 | . 98 98 97 92 Engine 6 | . 9 11 3 3 Core 3 | . 4 . 4 5 Treads 5 | . . 11 11 . Leg 20 | . 27 10 14 28 Device 16 | . 13 16 19 12 Storage 5 | . . 4 9 7 Processor 8 | . 9 11 6 9 Energy Gun 10 | . 5 19 12 5 Ballistic Gun 10 | . 13 . 10 14 Ballistic Cannon 2 | . . 11 1 . Launcher 2 | . 7 2 . . Naked Turns . | . . . . . Heaviest Build 76 | 9 12 56 59 76 Greatest Support 74 | 20 20 40 62 74 Greatest Overweight (x) 19 | . 2 1 19 1 Average Overweight (x) . | . . . . . Largest Inventory Capacity 20 | 5 8 20 20 20 Average Capacity 14 | 5 5 11 20 20 Most Carried 20 | 5 5 14 20 20 Average Carried 12 | 3 4 7 17 18 Final Capacity 20 | 5 5 20 20 20 Final Carried 19 | 3 5 14 19 3 Class Distribution -------------------- 21% | Scavenger-Mutant 19% | Skirmisher 17% | Gunner 17% | Scavenger-Gunner 17% | Mutant 6% | Scavenger-Skirmisher Dominant Class ---------------- Scavenger-Mutant | -10/Materials Gunner | -9/Materials Scavenger-Gunner | -8/Materials Skirmisher | -7/Factory Resources | -11 -10 -9 -8 -7 ----------- Run | Scr Mat Mat Mat Fac Matter Collected 2353 | 121 548 378 709 597 Remotely . | . . . . . Salvage Created 4070 | 127 642 843 1427 1031 Parts 253 | 11 40 55 90 57 Haulers Intercepted 8 | . 1 2 4 1 Recyclers Shooed 2 | . 1 . . 1 Parts Field Recycled . | . . . . . Retrieved Matter . | . . . . . Parts Self-Destructed . | . . . . . Prevented . | . . . . . Kills | -11 -10 -9 -8 -7 ------- Run | Scr Mat Mat Mat Fac Combat Hostiles Destroyed 68 | . 12 16 28 12 Melee 1 | . . . . 1 Guns 48 | . 9 4 25 10 Cannons 12 | . . 8 3 1 AOE 7 | . 3 4 . . Classes Destroyed 15 | 3 4 4 2 2 Worker 11 | 1 . 2 4 4 Builder 6 | . . 2 2 2 Tunneler 2 | 2 . . . . Hauler 8 | . 1 2 4 1 Recycler 9 | 1 1 2 1 4 Operator 3 | . 1 2 . . Watcher 6 | . 2 2 2 . Swarmer 11 | . . 4 7 . Grunt 36 | . 12 8 14 2 Brawler 2 | . . 2 . . Sentry 9 | . . 2 5 2 Specialist 2 | . . . . 2 Hunter 3 | . . . 1 2 Programmer 4 | . . . . 4 Heavy 1 | . . . 1 . Best Kill Streak 8 | 3 3 8 5 5 Combat Bots Only 4 | . 3 4 4 3 Max Kills in Single Turn 2 | 1 1 2 2 2 Gunslinging . | . . . . . Exploded 1 | . 1 1 . . Melee 1 | . . . . 1 Uniques/NPCs Destroyed . | . . . . . Combat | -11 -10 -9 -8 -7 -------- Run | Scr Mat Mat Mat Fac Damage Taken 7189 | . 672 552 2147 3818 Core 1243 | . 173 84 272 714 Absorbed by Shields 148 | . . . . 148 Redirected to Shielding 12 | . 12 . . . Core Remaining (%) 64 | 100 30 79 50 . Volleys Fired 317 | 19 101 53 97 47 Largest 3 | 2 2 3 3 3 Hottest 189 | 60 60 136 189 118 Shots Fired 701 | 38 150 122 255 136 Gun 591 | 38 144 68 212 129 Cannon 92 | . . 42 43 7 Launcher 18 | . 6 12 . . Special . | . . . . . Kinetic 394 | 19 101 42 124 108 Thermal 192 | . . 42 122 28 Explosive 18 | . 6 12 . . Electromagnetic 97 | 19 43 26 9 . Robot Hit Streak 18 | 12 9 8 18 13 Robot Miss Streak 9 | 2 6 7 9 7 Penetration Max 1 | . . . . 1 Secondary Targets 1 | . . . . 1 Max Gunslinging Chain 1 | . . . . 1 Shots Hit Robots 485 | 28 90 79 185 103 Core Hits 278 | 7 37 44 125 65 Critical Kills 3 | . 2 . 1 . Critical Parts Destroyed 2 | . 1 . . 1 Critical Strikes 10 | 1 4 1 2 2 Burn 2 | . . 1 1 . Destroy 5 | . 3 . 1 1 Corrupt 2 | 1 1 . . . Sever 1 | . . . . 1 Melee Attacks 9 | . . . . 9 Impact . | . . . . . Slashing 9 | . . . . 9 Piercing . | . . . . . Sneak Attacks 1 | . . . . 1 Combat Hostiles . | . . . . . Follow-up Attacks . | . . . . . Damage Inflicted 7867 | 293 1201 1494 2938 1941 Guns 5760 | 293 907 645 2444 1471 Cannons 1099 | . . 500 489 110 Explosions 623 | . 288 335 . . Melee 348 | . . . . 348 Ramming 37 | . 6 14 5 12 Kinetic 3686 | 112 480 500 1335 1259 Thermal 2205 | . 63 363 1457 322 Explosive 529 | . 225 304 . . Electromagnetic 1062 | 181 427 313 141 . Impact . | . . . . . Slashing 348 | . . . . 348 Piercing . | . . . . . Highest Corruption 5 | . . . . 5 Average Corruption 5 | . . . . 5 Corruption Purged . | . . . . . Corruption Blocked . | . . . . . Effects 1 | . . . . 1 Data Loss (minor) 1 | . . . . 1 Overload Shots . | . . . . . Overflow Damage 86 | . 17 1 1 67 Projectiles 1 | . . . 1 . Explosions 18 | . 17 1 . . Melee 67 | . . . . 67 Knockbacks 3 | . . . 3 . Impact . | . . . . . Kinetic 3 | . . . 3 . Secondary . | . . . . . Self-Inflicted Damage 93 | . 93 . . . Shots 3 | . 3 . . . Rammed 2 | . . 1 . 1 Targets Rammed 9 | . 2 2 2 3 Kicked 7 | . 2 1 2 2 Crushed . | . . . . . Highest Temperature 240 | 60 192 145 180 240 Average Temperature 53 | 30 45 36 55 72 Received Heat Transfer 1989 | . 318 258 837 576 Siege Activations . | . . . . . Robots Corrupted . | . . . . . Combat Hostiles . | . . . . . Parts Fried 3 | . 2 1 . . Impact Corruptions . | . . . . . Robots Melted . | . . . . . Combat Hostiles . | . . . . . Parts Melted 2 | . . 1 1 . Heat Transferred 3847 | . 50 975 2412 410 Parts Sabotaged . | . . . . . Parts Stolen . | . . . . . Parts Stripped . | . . . . . Power Chain Reactions 2 | . 1 1 . . Missiles Intercepted . | . . . . . Alert | -11 -10 -9 -8 -7 ------- Run | Scr Mat Mat Mat Fac Peak Influence 736 | 20 356 736 605 262 Initial 252 | . 13 48 237 252 Average 304 | 7 161 522 395 180 Maximum Alert Level 3 | . 1 3 2 1 Low Security (%) 26 | 100 44 13 . 51 Level 1 47 | . 55 7 64 48 Level 2 23 | . . 63 35 . Level 3 2 | . . 16 . . Level 4 . | . . . . . Level 5 . | . . . . . High Security . | . . . . . Max Security . | . . . . . Squads Dispatched 16 | . 2 5 4 5 Investigation 2 | . 1 1 . . Extermination 2 | . . . . 2 Reinforcement 8 | . 1 3 3 1 Assault 2 | . . 1 1 . Garrison 2 | . . . . 2 Intercept . | . . . . . Searches Triggered . | . . . . . Construction Impeded . | . . . . . Haulers Reinforced . | . . . . . Active Scanning Responses . | . . . . . Cargo Convoy Interrupts 1 | . . . . 1 Stealth | -11 -10 -9 -8 -7 --------- Run | Scr Mat Mat Mat Fac Distress Signals 10 | . 2 1 6 1 Communications Jammed . | . . . . . Distress Signals . | . . . . . Times Spotted 144 | . 25 35 55 29 Peak Tracking Total 12 | . 4 5 5 12 Tactical Retreats 7 | . . 2 4 1 Traps | -11 -10 -9 -8 -7 ------- Run | Scr Mat Mat Mat Fac Traps Triggered 4 | . 3 1 . . Indirectly . | . . . . . Trap Hack Attempts . | . . . . . Triggered . | . . . . . Disarmed . | . . . . . Reprogrammed . | . . . . . Reused . | . . . . . Traps Extracted . | . . . . . Installed . | . . . . . Triggered 1 | . 1 . . . Machines | -11 -10 -9 -8 -7 ---------- Run | Scr Mat Mat Mat Fac Machines Disabled 6 | . 2 3 1 . Max in Single Turn 1 | . 1 1 1 . Machines Sabotaged . | . . . . . Garrisons Compromised . | . . . . . Overloaded Fab Kills . | . . . . . Hacking | -11 -10 -9 -8 -7 --------- Run | Scr Mat Mat Mat Fac Machines Accessed 7 | . . . 5 2 Terminals 7 | . . . 5 2 Fabricators . | . . . . . Repair Stations . | . . . . . Recycling Units . | . . . . . Scanalyzers . | . . . . . Garrison Access . | . . . . . Total Hacks 13 | . . . 9 4 Successful 10 | . . . 7 3 Failed 3 | . . . 2 1 Catastrophic 1 | . . . 1 . Database Lockouts . | . . . . . Manual . | . . . . . Terminals 13 | . . . 9 4 Fabricators . | . . . . . Repair Stations . | . . . . . Recycling Units . | . . . . . Scanalyzers . | . . . . . Garrison Access . | . . . . . Terminal Hacks 10 | . . . 7 3 Prototype ID Bank 2 | . . . 1 1 Branch Access Points 1 | . . . 1 . Terminal Index 1 | . . . 1 . Alert Level 1 | . . . 1 . Locate Traps 2 | . . . 2 . Transport Status 1 | . . . . 1 Hauler Manifests 2 | . . . 1 1 Fabricator Hacks . | . . . . . Repair Station Hacks . | . . . . . Recycling Unit Hacks . | . . . . . Scanalyzer . | . . . . . Garrison Access Hacks . | . . . . . Unauthorized Hacks . | . . . . . Terminals . | . . . . . Fabricators . | . . . . . Repair Stations . | . . . . . Recycling Units . | . . . . . Scanalyzers . | . . . . . Garrison Access . | . . . . . Data Cores Recovered . | . . . . . Used . | . . . . . Hacking Detections 3 | . . . 2 1 Full Trace Events . | . . . . . Feedback Events . | . . . . . Feedback Blocked . | . . . . . Robot Schematics Acquired . | . . . . . Robots Built . | . . . . . Authchips . | . . . . . Time . | . . . . . Total Robot Build Rating . | . . . . . Part Schematics Acquired . | . . . . . Parts Built . | . . . . . Authchips . | . . . . . Time . | . . . . . Total Part Build Rating . | . . . . . Parts Repaired . | . . . . . Time . | . . . . . Parts Recycled . | . . . . . Recycled Matter . | . . . . . Retrieved Matter . | . . . . . Retrieved Components . | . . . . . Parts Scanalyzed . | . . . . . Part Schematics Acquired . | . . . . . Parts Damaged . | . . . . . Bothacking | -11 -10 -9 -8 -7 ------------ Run | Scr Mat Mat Mat Fac Used RIF Installer . | . . . . . Robots Hacked . | . . . . . Non-combat . | . . . . . Combat . | . . . . . Robot Hacks Applied . | . . . . . Relay Couplers Released . | . . . . . Fabnet Peak Effective % . | . . . . . Robots Rewired . | . . . . . Allies Hacked . | . . . . . Hacks Repelled . | . . . . . Allies | -11 -10 -9 -8 -7 -------- Run | Scr Mat Mat Mat Fac Total Allies . | . . . . . Largest Group . | . . . . . Highest-Rated Group . | . . . . . Highest-Rated Ally . | . . . . . Total Orders . | . . . . . Ally Attacks . | . . . . . Total Damage . | . . . . . Kills . | . . . . . Allies Corrupted . | . . . . . Allies Melted . | . . . . . Intel | -11 -10 -9 -8 -7 ------- Run | Scr Mat Mat Mat Fac Robot Analysis Total . | . . . . . Derelict Logs Recovered . | . . . . . Drone Launches . | . . . . . Drone Recoveries . | . . . . . Exploration | -11 -10 -9 -8 -7 ------------- Run | Scr Mat Mat Mat Fac Turns Passed 5000 | 112 1279 888 1680 1041 Spaces Moved 2363 | 44 739 393 593 594 Core 14 | 12 1 . 1 . Treads 471 | . . 187 284 . Legs 1878 | 32 738 206 308 594 Wheels . | . . . . . Hover . | . . . . . Flight . | . . . . . Fastest Speed 50 | 50 120 120 155 122 Average Speed 150 | 100 120 166 206 123 Slowest Speed 1000 | 120 150 240 1000 196 Overloaded Moves . | . . . . . Propulsion Burnouts . | . . . . . Robots Hopped . | . . . . . Cave-ins Triggered 1 | . . . . 1 Exploration Rate (%) 39 | 4 81 38 61 15 Regions Visited 4 Branch Regions . Pre-discovered Areas . | . . . . . Known Exits Taken 2 | . 1 1 . . Unknown Exits Taken 2 | 1 . . 1 . Scrap Searched . | . . . . . Spaces Dug . | . . . . . Terrain Destroyed 122 | . 51 70 . 1 Melee . | . . . . . Projectile 1 | . . . . 1 AOE 121 | . 51 70 . . Terrain Rammed . | . . . . . Walls Destroyed . | . . . . . Machines Disabled . | . . . . . Actions | -11 -10 -9 -8 -7 --------- Run | Scr Mat Mat Mat Fac Total 3259 | 77 1001 521 875 785 Wait 294 | . 95 46 93 60 Move 2359 | 43 738 392 592 594 Hop . | . . . . . Pick Up 89 | 9 18 14 36 12 Fast Attach 22 | . 8 3 2 9 Attach 59 | 6 9 5 18 21 Detach 6 | . 2 . 1 3 Swap 40 | . 12 4 14 10 Drop 55 | . 16 2 20 17 Fire 317 | 19 101 53 97 47 Melee 9 | . . . . 9 Ram 1 | . . . . 1 Kick 7 | . 2 1 2 2 Crush 1 | . . 1 . . Escape Stasis . | . . . . . Rewire . | . . . . . Trap . | . . . . . Miscellaneous . | . . . . . Route ------- -11/Scrapyard -10/Materials (discovered 4 exits: *Mat x2 / *Min x2) -9/Materials -8/Materials (discovered 2 exits: *Fac x2) -7/Factory History --------- Turn | Location | Event 9 | -11/Scrapyard | Discovered new exit (range 16) 113 | -11/Scrapyard | Entered Materials 310 | -10/Materials | Build established: Mutant 669 | -10/Materials | Discovered new exit (range 11) 737 | -10/Materials | Discovered new exit (range 9) 771 | -10/Materials | Build established: Scavenger-Mutant 771 | -10/Materials | Identified exit to Mines 888 | -10/Materials | Core integrity fell below 50% 960 | -10/Materials | Discovered new exit (range 16) 977 | -10/Materials | Identified exit to Materials 1329 | -10/Materials | Discovered exit to Materials (range 5) 1392 | -10/Materials | Entered another Materials area 1392 | -9/Materials | Evolved 2 slots: Utility x1, Weapon x1 2146 | -9/Materials | Build established: Gunner 2192 | -9/Materials | First assault squad dispatched 2265 | -9/Materials | Discovered new exit (range 4) 2277 | -9/Materials | Identified exit to Materials 2280 | -9/Materials | Entered another Materials area 2280 | -8/Materials | Evolved 2 slots: Propulsion x1, Utility x1 2587 | -8/Materials | Build established: Scavenger-Gunner 2985 | -8/Materials | Lost 8 parts (1p3n2u2w) 3059 | -8/Materials | Discovered new exit (range 15) 3648 | -8/Materials | Build established: Gunner 3770 | -8/Materials | Discovered new exit (range 18) 3880 | -8/Materials | First assault squad dispatched 3960 | -8/Materials | Entered Factory 3960 | -7/Factory | Evolved 2 slots: Power x1, Propulsion x1 4256 | -7/Factory | Build established: Skirmisher 4762 | -7/Factory | Garrison activated, responded to threat 4853 | -7/Factory | Cargo convoy interrupted 4959 | -7/Factory | Garrison activated, responded to threat 4980 | -7/Factory | Core integrity fell below 50% 4981 | -7/Factory | Crushed by falling debris 4996 | -7/Factory | Core integrity fell below 20% 5001 | -7/Factory | Destroyed by G-47 Trooper with Particle Gun Last Messages --------------- 04981_ K-01 Serf collects debris. 04981_ Penetrated by Slug. 04984_ K-01 Serf collects debris. 04985_ Penetrated by Slug. 04988_ Spread Laser destroyed. 04988_ K-01 Serf collects debris. 04990_ Greatsword destroyed. 04991_ Critical hit (Burn: +37). 04991_ K-01 Serf collects debris. 04992_ Kicked L-41 Fighter out of the way. 04992_ K-01 Serf collects debris. 04992_ Imp. Carbon-fiber Leg destroyed. 04993_ Acquired 34 matter. 04994_ Slammed into L-41 Fighter. 04995_ System corrupted: Component data lost. 04995_ Cryofiber Web severed. 04995_ K-01 Serf collects debris. 04997_ Coolant Injector severed. 04997_ Slug penetrates Wall. 04998_ K-01 Serf collects debris. Map ----- +----------------------------------------------------+ | ????????????????????????? """? """??????????? | | ?????????????????????????? """" """"?""""????? | | ??????????????????????????? """" """" """"????? | | ??????????????????????????? ?????? | | ???????????????????????????? """" """ """"???? | | ????????????????????????????# """" """% """" | | ????????????????????????????# %%"" """ """" | | ????????????????????????????# %% % | | ????????????????????????????# | | ????????????????????????????# *= % % | | ????????????????????????????# =%= | | ????????????????????????????# |%=% | | ????????????????????????????# *#########??????? | | ??????????????############### %# #????????????? | | ?############## ^ ^ !#??????????????? | | ?# # #??????????????? | | ?# """"" # [ u #??????????????? | | ?# ""T"" # #??????????????? | | ?# # ^ ^^ #??????????????? | | ?# """ """ # =] ""#??????????????? | | ?# """ """ # =] %"" %%%%k ""#??????????????? | | ?# """ """ # ]] ""% """ !%T"#??????????????? | | ?# "" "" # ""%%""% ""#??????????????? | | ?# "" "" # """ """hh ""#??????????????? | | ?# # % g[!g|= ! #??????????????? | | ?# # % l@ !gh*== #??????????????? | | ?# # u###########Y###??????????????? | | ###########+### # [!%|%%#???????????????? | | # # !!!*#???????????????? | | # + [!|#???????????????? | | # # #???????????????? | | # # """ #???????????????? | | # # """ #???????????????? | | %% # ######## """ #???????????????? | | ####"### #??????# #???????????????? | | =| #??????# #???????????????? | | %! #??????# " " +???????????????? | | #??????# ""G"" #???????????????? | | #??????# #???????????????? | | #??????##############???????????????? | | ######## #???????????????????????????????????? | | ???????# #???????????????????????????????????? | | ???????# #???????????????????????????????????? | | ???????# +???????????????????????????????????? | | ???????# #???????????????????????????????????? | | #??????# #???????????????????????????????????? | | #??????# #???????????????????????????????????? | | #??????# #???????????????????????????????????? | | #?###### #???????????????????????????????????? | | # #???????????????????????????????????? | +----------------------------------------------------+ Best States ------------- Heat Dissipation 75 Coolant Potential 65 Energy Generation 25 Energy Capacity 465 Matter Stores 300 Matter Capacity 300 Sight Range 20 Robot Scan Range 14 Terrain Scan Density 110 ECM Strength 1 Base Temperature (-) 100 Core Shielding 20 Evasion (%) 55 Recoil Reduction 3 Item Schematics ----------------- None Robot Schematics ------------------ None Fabricated ------------ Nothing Alien Tech Used ----------------- None Achievements -------------- None Challenges ------------ None Game ------ Seed ThrowingSegregatorProcessor Manual? 0 Play Time 01:26:25 Cumulative 18.0 hours Start 2022.05.30 @ 09:54:32 End 2022.05.30 @ 19:14:01 Sessions 5 Manual Loads 0 Difficulty Rogue Special Mode None Game No. 15 Rogue 9 Adventurer 6 Explorer 0 Win Type - Total 0 Types 0/0/0/0/0/0/0/0/0 Lore% 7 Gallery% 22 Achievement% 16 Wizard Run 0 Options --------- ASCII 0 Keyboard 0 Movement Mouse Keybinds 0 Fullscreen 1 Font 18/X11 Map View 76x50 Tactical HUD 1 Map Filters NONE Filters NONE Steam 1 RUN: 2a206ac9-83d3-46b4-915f-ce4a0ec8037b